Body Name,Document Number,Service,Type of Expenditure,Invoice Date,Supplier Name,Cost to the Council (Amount Exc VAT),Month
EREWASH BOROUGH COUNCIL,224296,Balance Sheet,ICT Works,31/01/21,ADVANCED BUSINESS SOFTWARE & SOLUTIONS LIMITED,"10,945.29",Feb-21
EREWASH BOROUGH COUNCIL,224212,Treasury Management and Bank Charges,Allpay/Post Office Charges,31/01/21,ALLPAY LIMITED,793.47,Feb-21
EREWASH BOROUGH COUNCIL,224325,Dog Control,Repairs and Maintenance,15/01/21,ALLSCREENS NATIONWIDE LTD,220.00,Feb-21
EREWASH BOROUGH COUNCIL,223736,Property and Estates,Reactive Maintenance,01/02/21,ALPHA PARTNER (MIDLANDS)  LIMITED,275.00,Feb-21
EREWASH BOROUGH COUNCIL,223009,Property and Estates,Reactive Maintenance,12/01/21,ALPHA PARTNER (MIDLANDS)  LIMITED,288.00,Feb-21
EREWASH BOROUGH COUNCIL,223734,Property and Estates,Reactive Maintenance,01/02/21,ALPHA PARTNER (MIDLANDS)  LIMITED,400.00,Feb-21
EREWASH BOROUGH COUNCIL,223644,Property and Estates,Reactive Maintenance,26/01/21,ALPHA PARTNER (MIDLANDS)  LIMITED,531.50,Feb-21
EREWASH BOROUGH COUNCIL,223733,Property and Estates,Reactive Maintenance,01/02/21,ALPHA PARTNER (MIDLANDS)  LIMITED,570.00,Feb-21
EREWASH BOROUGH COUNCIL,223735,Property and Estates,Reactive Maintenance,01/02/21,ALPHA PARTNER (MIDLANDS)  LIMITED,600.00,Feb-21
EREWASH BOROUGH COUNCIL,223731,Property and Estates,Reactive Maintenance,01/02/21,ALPHA PARTNER (MIDLANDS)  LIMITED,658.00,Feb-21
EREWASH BOROUGH COUNCIL,223323,Property and Estates,Planned Preventative Maintenance,22/01/21,ALPHA PARTNER (MIDLANDS)  LIMITED,825.50,Feb-21
EREWASH BOROUGH COUNCIL,223600,Property and Estates,Reactive Maintenance,01/02/21,ALPHA PARTNER (MIDLANDS)  LIMITED,"1,923.20",Feb-21
EREWASH BOROUGH COUNCIL,223490,ICT Support Services,Office Paper,29/01/21,ANTALIS DOCUMENT SUPPLIES,241.00,Feb-21
EREWASH BOROUGH COUNCIL,223557,Merlin Way Depot - Ilkeston,Repairs and Maintenance,27/01/21,AQUA CLEAN,375.25,Feb-21
EREWASH BOROUGH COUNCIL,223588,Building Control - Advice and Information,General Equipment,02/02/21,ARCO,298.98,Feb-21
EREWASH BOROUGH COUNCIL,223455,Building Control - Fee Earning,Courses and Seminars,27/01/21,ARCO,559.76,Feb-21
EREWASH BOROUGH COUNCIL,224265,Homelessness,Temporary Accommodation,24/01/21,ASCOT HOTEL,280.00,Feb-21
EREWASH BOROUGH COUNCIL,223561,Homelessness,Temporary Accommodation,13/01/21,ASCOT HOTEL,280.00,Feb-21
EREWASH BOROUGH COUNCIL,223562,Homelessness,Temporary Accommodation,20/01/21,ASCOT HOTEL,280.00,Feb-21
EREWASH BOROUGH COUNCIL,224275,Homelessness,Temporary Accommodation,31/01/21,ASCOT HOTEL,280.00,Feb-21
EREWASH BOROUGH COUNCIL,224277,Homelessness,Temporary Accommodation,14/02/21,ASCOT HOTEL,280.00,Feb-21
EREWASH BOROUGH COUNCIL,224276,Homelessness,Temporary Accommodation,07/02/21,ASCOT HOTEL,280.00,Feb-21
EREWASH BOROUGH COUNCIL,223275,Green Space,Materials/Consumables,11/01/21,BANNER GROUP LIMITED,251.74,Feb-21
EREWASH BOROUGH COUNCIL,224176,Licensing - Health Services,Animal Welfare Licence,17/02/21,BARKINGHAM PALACE ANIMAL HOTEL,280.00,Feb-21
EREWASH BOROUGH COUNCIL,223862,Trees Hedges and Local Nature Reserves,Contracted Services,09/02/21,BEECHWOOD TREES AND LANDSCAPLES LTD,"7,200.00",Feb-21
EREWASH BOROUGH COUNCIL,224334,ICT Support Services,Telephones,19/02/21,BRITISH TELECOMMUNICATIONS PLC,668.00,Feb-21
EREWASH BOROUGH COUNCIL,223597,ICT Support Services,Telephones,22/01/21,BRITISH TELECOMMUNICATIONS PLC,"1,656.49",Feb-21
EREWASH BOROUGH COUNCIL,223294,Green Space,Contracted Services,14/01/21,BROXAP LIMITED,718.42,Feb-21
EREWASH BOROUGH COUNCIL,223294,Street Scene,Bins,14/01/21,BROXAP LIMITED,"1,571.58",Feb-21
EREWASH BOROUGH COUNCIL,223598,ICT Support Services,Data Lines,15/01/21,BT GLOBAL SERVICES,"13,138.72",Feb-21
EREWASH BOROUGH COUNCIL,223589,Occupational Health and Welfare,Occupational Health Service,01/02/21,BUPA HEALTH CLINICS,406.44,Feb-21
EREWASH BOROUGH COUNCIL,224211,Treasury Management and Bank Charges,Credit/Debit Card Charges,10/02/21,CAPITA,"2,347.04",Feb-21
EREWASH BOROUGH COUNCIL,223780,Treasury Management and Bank Charges,Credit/Debit Card Charges,15/01/21,CAPITA,"2,585.23",Feb-21
EREWASH BOROUGH COUNCIL,224179,Licensing - Health Services,Animal Welfare Licence,17/02/21,CASTLEFIELD KENNELS LIMITED,280.00,Feb-21
EREWASH BOROUGH COUNCIL,223146,ICT Support Services,General Equipment,14/01/21,CCS MEDIA LIMITED,689.80,Feb-21
EREWASH BOROUGH COUNCIL,223045,ICT Support Services,General Equipment,11/01/21,CCS MEDIA LIMITED,"3,868.27",Feb-21
EREWASH BOROUGH COUNCIL,223045,ICT Support Services,General Equipment,11/01/21,CCS MEDIA LIMITED,"7,183.93",Feb-21
EREWASH BOROUGH COUNCIL,224197,Balance Sheet,Fuel Store,08/02/21,CERTAS ENERGY UK LIMITED T/A CARLTON FUELS,"28,262.06",Feb-21
EREWASH BOROUGH COUNCIL,223395,Housing Benefit Administration,Project Grants,26/01/21,CIVICA UK LIMITED,"4,770.00",Feb-21
EREWASH BOROUGH COUNCIL,223854,ICT Support Services,Mobile Phones,01/02/21,CLASS AFFINITY PROJECTS LTD,"2,474.94",Feb-21
EREWASH BOROUGH COUNCIL,223730,Property and Estates,PPM Mechanical and Equipment,02/02/21,CONCEPT ELEVATORS (UK) LTD,360.67,Feb-21
EREWASH BOROUGH COUNCIL,223484,Commissioned Projects,General Equipment,26/01/21,COTMANHAY COMMUNITY NETWORK,"1,304.00",Feb-21
EREWASH BOROUGH COUNCIL,223808,Kerbside Dry Recycling Collection,Repairs and Maintenance,05/02/21,DENNIS EAGLE LTD,172.50,Feb-21
EREWASH BOROUGH COUNCIL,224151,Household/Residual Waste Collection,Repairs and Maintenance,28/01/21,DENNIS EAGLE LTD,256.12,Feb-21
EREWASH BOROUGH COUNCIL,224142,Trade Waste,Repairs and Maintenance,04/02/21,DENNIS EAGLE LTD,256.17,Feb-21
EREWASH BOROUGH COUNCIL,223805,Household/Residual Waste Collection,Repairs and Maintenance,29/01/21,DENNIS EAGLE LTD,273.19,Feb-21
EREWASH BOROUGH COUNCIL,224200,Household/Residual Waste Collection,Repairs and Maintenance,15/02/21,DENNIS EAGLE LTD,280.24,Feb-21
EREWASH BOROUGH COUNCIL,223633,Household/Residual Waste Collection,Repairs and Maintenance,19/01/21,DENNIS EAGLE LTD,295.95,Feb-21
EREWASH BOROUGH COUNCIL,223795,Household/Residual Waste Collection,Repairs and Maintenance,08/02/21,DENNIS EAGLE LTD,295.95,Feb-21
EREWASH BOROUGH COUNCIL,223798,Household/Residual Waste Collection,Repairs and Maintenance,01/02/21,DENNIS EAGLE LTD,311.68,Feb-21
EREWASH BOROUGH COUNCIL,223863,Household/Residual Waste Collection,Repairs and Maintenance,03/02/21,DENNIS EAGLE LTD,350.64,Feb-21
EREWASH BOROUGH COUNCIL,223635,Kerbside Dry Recycling Collection,Repairs and Maintenance,31/12/20,DENNIS EAGLE LTD,355.28,Feb-21
EREWASH BOROUGH COUNCIL,223629,Household/Residual Waste Collection,Repairs and Maintenance,21/01/21,DENNIS EAGLE LTD,429.92,Feb-21
EREWASH BOROUGH COUNCIL,223793,Household/Residual Waste Collection,Repairs and Maintenance,08/02/21,DENNIS EAGLE LTD,442.36,Feb-21
EREWASH BOROUGH COUNCIL,223806,Household/Residual Waste Collection,Repairs and Maintenance,29/01/21,DENNIS EAGLE LTD,455.31,Feb-21
EREWASH BOROUGH COUNCIL,223810,Household/Residual Waste Collection,Repairs and Maintenance,22/01/21,DENNIS EAGLE LTD,483.41,Feb-21
EREWASH BOROUGH COUNCIL,223794,Household/Residual Waste Collection,Repairs and Maintenance,08/02/21,DENNIS EAGLE LTD,665.99,Feb-21
EREWASH BOROUGH COUNCIL,223808,Household/Residual Waste Collection,Hire Charges,05/02/21,DENNIS EAGLE LTD,"5,300.77",Feb-21
EREWASH BOROUGH COUNCIL,224219,Non Domestic Rates Income and Expenditure,NNDR Tariff,22/02/21,DERBY CITY COUNCIL,"520,564.97",Feb-21
EREWASH BOROUGH COUNCIL,224291,Balance Sheet,Payroll Collection A/c - Credit Union,23/02/21,DERBYSHIRE COMMUNITY BANK,330.00,Feb-21
EREWASH BOROUGH COUNCIL,224181,Balance Sheet,Payroll Collection A/c - Purchase Added Years,17/02/21,DERBYSHIRE COUNTY COUNCIL...,247.22,Feb-21
EREWASH BOROUGH COUNCIL,224243,Central Services/Statement of Accounts,Year End Pension Valuation Fee,18/02/21,DERBYSHIRE COUNTY COUNCIL...,"1,200.00",Feb-21
EREWASH BOROUGH COUNCIL,223586,Balance Sheet,Grant Payments,23/11/20,DERBYSHIRE COUNTY COUNCIL...,"5,363.40",Feb-21
EREWASH BOROUGH COUNCIL,223489,Local Land Charges,County Council Search Charges,22/01/21,DERBYSHIRE COUNTY COUNCIL...,"5,374.82",Feb-21
EREWASH BOROUGH COUNCIL,223587,Balance Sheet,Grant Payments,18/08/20,DERBYSHIRE COUNTY COUNCIL...,"13,040.00",Feb-21
EREWASH BOROUGH COUNCIL,223469,Compensation and Pensions,Compensatory Added Years,27/01/21,DERBYSHIRE COUNTY COUNCIL...,"18,717.90",Feb-21
EREWASH BOROUGH COUNCIL,224336,Corporate Management,Consultants Fees,12/02/21,DERBYSHIRE COUNTY COUNCIL...,"19,789.00",Feb-21
EREWASH BOROUGH COUNCIL,224181,Balance Sheet,Payroll Collection A/c - Superannuation,17/02/21,DERBYSHIRE COUNTY COUNCIL...,"206,544.32",Feb-21
EREWASH BOROUGH COUNCIL,224297,Homelessness,Temporary Accommodation,27/01/21,DERVENTIO HOUSING TRUST CIC,378.90,Feb-21
EREWASH BOROUGH COUNCIL,223758,Street Scene,Contracted Services,04/02/21,EAST RIDING HORTICULTURE LTD,5.00,Feb-21
EREWASH BOROUGH COUNCIL,223758,Street Scene,General Equipment,04/02/21,EAST RIDING HORTICULTURE LTD,743.31,Feb-21
EREWASH BOROUGH COUNCIL,223563,Neighbourhood Wardens,Contracted Services,27/12/20,EFFECTIVE SECURITY SERVICES LTD,"2,480.00",Feb-21
EREWASH BOROUGH COUNCIL,223827,Neighbourhood Wardens,Contracted Services,24/01/21,EFFECTIVE SECURITY SERVICES LTD,"3,038.00",Feb-21
EREWASH BOROUGH COUNCIL,223828,Neighbourhood Wardens,Contracted Services,31/01/21,EFFECTIVE SECURITY SERVICES LTD,"3,053.50",Feb-21
EREWASH BOROUGH COUNCIL,224278,Neighbourhood Wardens,Contracted Services,07/02/21,EFFECTIVE SECURITY SERVICES LTD,"3,224.00",Feb-21
EREWASH BOROUGH COUNCIL,224279,Neighbourhood Wardens,Contracted Services,14/02/21,EFFECTIVE SECURITY SERVICES LTD,"3,224.00",Feb-21
EREWASH BOROUGH COUNCIL,224224,Household/Residual Waste Collection,Training,10/02/21,ENTERPRISE TRANSPORT TRAINING,350.00,Feb-21
EREWASH BOROUGH COUNCIL,223495,Community Grants,Project Grants,02/02/21,EREWASH COMMUNITY TRANSPORT,"1,296.00",Feb-21
EREWASH BOROUGH COUNCIL,224295,Balance Sheet,Payroll Collection A/c - Labour Party Funds,23/02/21,EREWASH LABOUR GROUP,569.54,Feb-21
EREWASH BOROUGH COUNCIL,223486,External Audit,Audit Fees,28/01/21,ERNST & YOUNG LLP.,"10,910.50",Feb-21
EREWASH BOROUGH COUNCIL,223760,Development Control - Fee Earning,Furniture,04/02/21,EURO BUSINESS SERVICES,358.00,Feb-21
EREWASH BOROUGH COUNCIL,223707,Household/Residual Waste Collection,Hire Charges,10/01/21,EUROMUNICIPAL LTD,"1,120.00",Feb-21
EREWASH BOROUGH COUNCIL,223708,Household/Residual Waste Collection,Hire Charges,10/01/21,EUROMUNICIPAL LTD,"1,120.00",Feb-21
EREWASH BOROUGH COUNCIL,223710,Household/Residual Waste Collection,Hire Charges,10/01/21,EUROMUNICIPAL LTD,"1,120.00",Feb-21
EREWASH BOROUGH COUNCIL,223709,Household/Residual Waste Collection,Hire Charges,10/01/21,EUROMUNICIPAL LTD,"1,120.00",Feb-21
EREWASH BOROUGH COUNCIL,223162,Transport Trading Account,Materials/Consumables,11/01/21,EUROTRUCK MIDLANDS LTD,9.40,Feb-21
EREWASH BOROUGH COUNCIL,223162,Green Space,Repairs and Maintenance,11/01/21,EUROTRUCK MIDLANDS LTD,58.00,Feb-21
EREWASH BOROUGH COUNCIL,223162,Household/Residual Waste Collection,Repairs and Maintenance,11/01/21,EUROTRUCK MIDLANDS LTD,536.00,Feb-21
EREWASH BOROUGH COUNCIL,223579,Green Space,Agency Staff,14/12/20,EXTRA PERSONNEL LTD,289.38,Feb-21
EREWASH BOROUGH COUNCIL,223766,Street Scene,Agency Staff,21/12/20,EXTRA PERSONNEL LTD,324.24,Feb-21
EREWASH BOROUGH COUNCIL,223702,Green Space,Agency Staff,28/12/20,EXTRA PERSONNEL LTD,330.72,Feb-21
EREWASH BOROUGH COUNCIL,224193,Street Scene,Agency Staff,08/02/21,EXTRA PERSONNEL LTD,405.30,Feb-21
EREWASH BOROUGH COUNCIL,223804,Street Scene,Agency Staff,01/02/21,EXTRA PERSONNEL LTD,405.30,Feb-21
EREWASH BOROUGH COUNCIL,223590,Green Space,Agency Staff,25/01/21,EXTRA PERSONNEL LTD,405.30,Feb-21
EREWASH BOROUGH COUNCIL,223767,Street Scene,Agency Staff,07/12/20,EXTRA PERSONNEL LTD,405.30,Feb-21
EREWASH BOROUGH COUNCIL,223458,Street Scene,Agency Staff,18/01/21,EXTRA PERSONNEL LTD,405.30,Feb-21
EREWASH BOROUGH COUNCIL,223454,Green Space,Agency Staff,28/12/20,EXTRA PERSONNEL LTD,440.96,Feb-21
EREWASH BOROUGH COUNCIL,223453,Public Conveniences,Agency Staff,28/12/20,EXTRA PERSONNEL LTD,516.18,Feb-21
EREWASH BOROUGH COUNCIL,224194,Public Conveniences,Agency Staff,08/02/21,EXTRA PERSONNEL LTD,540.40,Feb-21
EREWASH BOROUGH COUNCIL,223803,Public Conveniences,Agency Staff,01/02/21,EXTRA PERSONNEL LTD,540.40,Feb-21
EREWASH BOROUGH COUNCIL,223592,Public Conveniences,Agency Staff,25/01/21,EXTRA PERSONNEL LTD,540.40,Feb-21
EREWASH BOROUGH COUNCIL,223453,Green Space,Agency Staff,28/12/20,EXTRA PERSONNEL LTD,544.72,Feb-21
EREWASH BOROUGH COUNCIL,223592,Green Space,Agency Staff,25/01/21,EXTRA PERSONNEL LTD,578.76,Feb-21
EREWASH BOROUGH COUNCIL,223452,Public Conveniences,Agency Staff,18/01/21,EXTRA PERSONNEL LTD,661.99,Feb-21
EREWASH BOROUGH COUNCIL,223452,Green Space,Agency Staff,18/01/21,EXTRA PERSONNEL LTD,689.00,Feb-21
EREWASH BOROUGH COUNCIL,223803,Green Space,Agency Staff,01/02/21,EXTRA PERSONNEL LTD,819.91,Feb-21
EREWASH BOROUGH COUNCIL,224194,Green Space,Agency Staff,08/02/21,EXTRA PERSONNEL LTD,"1,047.28",Feb-21
EREWASH BOROUGH COUNCIL,223591,Green Space,Agency Staff,25/01/21,EXTRA PERSONNEL LTD,"1,161.06",Feb-21
EREWASH BOROUGH COUNCIL,223454,Street Scene,Agency Staff,28/12/20,EXTRA PERSONNEL LTD,"1,645.98",Feb-21
EREWASH BOROUGH COUNCIL,223453,Street Scene,Agency Staff,28/12/20,EXTRA PERSONNEL LTD,"1,846.62",Feb-21
EREWASH BOROUGH COUNCIL,223800,Green Space,Agency Staff,01/02/21,EXTRA PERSONNEL LTD,"1,907.99",Feb-21
EREWASH BOROUGH COUNCIL,223800,Street Scene,Agency Staff,01/02/21,EXTRA PERSONNEL LTD,"1,907.99",Feb-21
EREWASH BOROUGH COUNCIL,223702,Kerbside Dry Recycling Collection,Agency Staff,28/12/20,EXTRA PERSONNEL LTD,"1,939.92",Feb-21
EREWASH BOROUGH COUNCIL,223576,Kerbside Dry Recycling Collection,Agency Staff,04/01/21,EXTRA PERSONNEL LTD,"2,028.06",Feb-21
EREWASH BOROUGH COUNCIL,223579,Kerbside Dry Recycling Collection,Agency Staff,14/12/20,EXTRA PERSONNEL LTD,"2,091.39",Feb-21
EREWASH BOROUGH COUNCIL,224194,Street Scene,Agency Staff,08/02/21,EXTRA PERSONNEL LTD,"2,099.16",Feb-21
EREWASH BOROUGH COUNCIL,223701,Kerbside Dry Recycling Collection,Agency Staff,11/01/21,EXTRA PERSONNEL LTD,"2,106.51",Feb-21
EREWASH BOROUGH COUNCIL,223591,Street Scene,Agency Staff,25/01/21,EXTRA PERSONNEL LTD,"2,222.62",Feb-21
EREWASH BOROUGH COUNCIL,223452,Street Scene,Agency Staff,18/01/21,EXTRA PERSONNEL LTD,"2,332.61",Feb-21
EREWASH BOROUGH COUNCIL,223841,Kerbside Dry Recycling Collection,Agency Staff,18/01/21,EXTRA PERSONNEL LTD,"2,388.00",Feb-21
EREWASH BOROUGH COUNCIL,223803,Street Scene,Agency Staff,01/02/21,EXTRA PERSONNEL LTD,"2,429.88",Feb-21
EREWASH BOROUGH COUNCIL,223592,Street Scene,Agency Staff,25/01/21,EXTRA PERSONNEL LTD,"2,766.20",Feb-21
EREWASH BOROUGH COUNCIL,223702,Household/Residual Waste Collection,Agency Staff,28/12/20,EXTRA PERSONNEL LTD,"2,909.88",Feb-21
EREWASH BOROUGH COUNCIL,223576,Household/Residual Waste Collection,Agency Staff,04/01/21,EXTRA PERSONNEL LTD,"3,042.08",Feb-21
EREWASH BOROUGH COUNCIL,223579,Household/Residual Waste Collection,Agency Staff,14/12/20,EXTRA PERSONNEL LTD,"3,137.09",Feb-21
EREWASH BOROUGH COUNCIL,223701,Household/Residual Waste Collection,Agency Staff,11/01/21,EXTRA PERSONNEL LTD,"3,159.76",Feb-21
EREWASH BOROUGH COUNCIL,223841,Household/Residual Waste Collection,Agency Staff,18/01/21,EXTRA PERSONNEL LTD,"3,581.99",Feb-21
EREWASH BOROUGH COUNCIL,223003,HLF Victoria Park Restoration,Printing and Stationery,12/01/21,FITZPATRICK WOOLMER DESIGN & PUBLISHING,5.07,Feb-21
EREWASH BOROUGH COUNCIL,223005,HLF Victoria Park Restoration,Consultants Fees,12/01/21,FITZPATRICK WOOLMER DESIGN & PUBLISHING,134.07,Feb-21
EREWASH BOROUGH COUNCIL,223003,HLF Victoria Park Restoration,Consultants Fees,12/01/21,FITZPATRICK WOOLMER DESIGN & PUBLISHING,199.00,Feb-21
EREWASH BOROUGH COUNCIL,223303,Green Space,Materials/Consumables,22/01/21,FITZPATRICK WOOLMER DESIGN & PUBLISHING,355.50,Feb-21
EREWASH BOROUGH COUNCIL,223005,HLF Victoria Park Restoration,Training,12/01/21,FITZPATRICK WOOLMER DESIGN & PUBLISHING,957.93,Feb-21
EREWASH BOROUGH COUNCIL,223003,HLF Victoria Park Restoration,General Publicity and Promotion,12/01/21,FITZPATRICK WOOLMER DESIGN & PUBLISHING,"1,315.93",Feb-21
EREWASH BOROUGH COUNCIL,223004,Pride In Erewash,Materials/Consumables,12/01/21,FITZPATRICK WOOLMER DESIGN & PUBLISHING,"1,859.00",Feb-21
EREWASH BOROUGH COUNCIL,223840,Kerbside Dry Recycling Collection,Waste Disposal,31/01/21,GAE SMITH HOLDINGS T/A CASEPAK,"51,024.36",Feb-21
EREWASH BOROUGH COUNCIL,223571,Kerbside Dry Recycling Collection,Waste Disposal,31/12/20,GAE SMITH HOLDINGS T/A CASEPAK,"57,478.79",Feb-21
EREWASH BOROUGH COUNCIL,223461,Green Space,Materials/Consumables,20/01/21,GROUND-GUARDS LTD,"1,997.74",Feb-21
EREWASH BOROUGH COUNCIL,224290,Balance Sheet,Payroll Collection A/c - Attachment Orders,23/02/21,HMCTS,257.13,Feb-21
EREWASH BOROUGH COUNCIL,224180,Personnel,Apprenticeship Levy,17/02/21,HMRC CUMBERNAULD,"-1,250.00",Feb-21
EREWASH BOROUGH COUNCIL,224180,Balance Sheet,Payroll Collection A/c - Statutory Maternity Pay,17/02/21,HMRC CUMBERNAULD,"-1,008.77",Feb-21
EREWASH BOROUGH COUNCIL,223492,Balance Sheet,Payroll Collection A/c - Income Tax,02/02/21,HMRC CUMBERNAULD,213.20,Feb-21
EREWASH BOROUGH COUNCIL,223492,Balance Sheet,Payroll Collection A/c - National Insurance,02/02/21,HMRC CUMBERNAULD,348.28,Feb-21
EREWASH BOROUGH COUNCIL,224180,Balance Sheet,Payroll Collection A/c - Recovery of Student Loan,17/02/21,HMRC CUMBERNAULD,"1,232.00",Feb-21
EREWASH BOROUGH COUNCIL,224180,Balance Sheet,Apprenticeship Levy,17/02/21,HMRC CUMBERNAULD,"3,368.00",Feb-21
EREWASH BOROUGH COUNCIL,224180,Balance Sheet,Payroll Collection A/c - Income Tax,17/02/21,HMRC CUMBERNAULD,"72,722.40",Feb-21
EREWASH BOROUGH COUNCIL,224180,Balance Sheet,Payroll Collection A/c - National Insurance,17/02/21,HMRC CUMBERNAULD,"103,401.15",Feb-21
EREWASH BOROUGH COUNCIL,223001,Property and Estates,PPM Mechanical and Equipment,06/01/21,HORIZON SPECIAL CONTRACTING LTD,"3,780.00",Feb-21
EREWASH BOROUGH COUNCIL,223572,Non-domestic Rates Collection,Fees Costs and Expenses,21/01/21,INFORM CPI LTD,240.00,Feb-21
EREWASH BOROUGH COUNCIL,223711,Car Parking,Credit/Debit Card Charges,31/01/21,INTERNATIONAL PARKING SYSTEMS UK LTD,411.60,Feb-21
EREWASH BOROUGH COUNCIL,223485,Revenues and Benefits,Courses and Seminars,26/01/21,IRRV,360.00,Feb-21
EREWASH BOROUGH COUNCIL,223585,Balance Sheet,Building Works,27/01/21,J TOMLINSON LIMITED,"24,674.00",Feb-21
EREWASH BOROUGH COUNCIL,224317,Green Space,Reactive Maintenance,23/02/21,JACK MOODY LCE LTD,"4,000.00",Feb-21
EREWASH BOROUGH COUNCIL,224317,Watercourse Maintenance,Contracted Services,23/02/21,JACK MOODY LCE LTD,"7,626.11",Feb-21
EREWASH BOROUGH COUNCIL,224317,Green Space,Path Repairs,23/02/21,JACK MOODY LCE LTD,"16,000.00",Feb-21
EREWASH BOROUGH COUNCIL,223741,Balance Sheet,Childcare Salary Sacrifice-Kiddie Vouchers,05/02/21,KIDDIVOUCHERS LTD,950.41,Feb-21
EREWASH BOROUGH COUNCIL,224263,Car Parking,Contracted Services,31/01/21,KINGS ARMOURED SECURITY SERVICES,"1,310.80",Feb-21
EREWASH BOROUGH COUNCIL,224315,Street Scene,Bins,26/01/21,KRM BUILDING SUPPLIES LTD,173.01,Feb-21
EREWASH BOROUGH COUNCIL,224315,Allotments,Contracted Services,26/01/21,KRM BUILDING SUPPLIES LTD,222.98,Feb-21
EREWASH BOROUGH COUNCIL,223148,ICT Support Services,Equipment Leasing Charge,13/01/21,KYOCERA DOCUMENT SOLUTIONS (UK) LTD,"1,772.59",Feb-21
EREWASH BOROUGH COUNCIL,223341,Christmas Lights,Reactive Maintenance,20/01/21,LEISURE LITES LIMTED,300.00,Feb-21
EREWASH BOROUGH COUNCIL,223340,Christmas Lights,Planned Preventative Maintenance,20/01/21,LEISURE LITES LIMTED,"12,206.03",Feb-21
EREWASH BOROUGH COUNCIL,224261,Legal Services,"Stamp Duty,Search and Legal Fees",21/01/21,LEXISNEXIS BUTTERWORTHS,400.00,Feb-21
EREWASH BOROUGH COUNCIL,224261,Council Tax Collection,Fees Costs and Expenses,21/01/21,LEXISNEXIS BUTTERWORTHS,"1,326.00",Feb-21
EREWASH BOROUGH COUNCIL,223182,Treasury Management and Bank Charges,Consultants Fees,07/01/21,LINK ASSET SERVICES,"8,500.00",Feb-21
EREWASH BOROUGH COUNCIL,223481,Sports Development Coaching & Courses,General Equipment,20/01/21,LITTLE ACORNS FOREST SCHOOLS LTD,900.00,Feb-21
EREWASH BOROUGH COUNCIL,223742,Transport Trading Account,Training,09/02/21,LLOYD MORGAN GROUP LTD,970.00,Feb-21
EREWASH BOROUGH COUNCIL,224338,ICT Support Services,Software Licences,04/01/21,LLOYDS BANK,11.94,Feb-21
EREWASH BOROUGH COUNCIL,224338,Personnel,Printing and Stationery,04/01/21,LLOYDS BANK,15.36,Feb-21
EREWASH BOROUGH COUNCIL,224338,Neighbourhood Wardens,Uniforms,04/01/21,LLOYDS BANK,29.97,Feb-21
EREWASH BOROUGH COUNCIL,223781,Property and Estates,Printing and Stationery,02/12/20,LLOYDS BANK,30.70,Feb-21
EREWASH BOROUGH COUNCIL,224338,Healthy Lifestyle Hub,Fees Costs and Expenses,04/01/21,LLOYDS BANK,37.89,Feb-21
EREWASH BOROUGH COUNCIL,223781,Neighbourhood Wardens,Contracted Services,02/12/20,LLOYDS BANK,42.95,Feb-21
EREWASH BOROUGH COUNCIL,224338,Building Control - Fee Earning,General Equipment,04/01/21,LLOYDS BANK,46.98,Feb-21
EREWASH BOROUGH COUNCIL,224338,ICT Support Services,General Equipment,04/01/21,LLOYDS BANK,49.98,Feb-21
EREWASH BOROUGH COUNCIL,224338,Training - Personnel Costs Only,Courses and Seminars,04/01/21,LLOYDS BANK,49.99,Feb-21
EREWASH BOROUGH COUNCIL,223781,Community Services,Printing and Stationery,02/12/20,LLOYDS BANK,57.53,Feb-21
EREWASH BOROUGH COUNCIL,223781,ICT Support Services,General Equipment,02/12/20,LLOYDS BANK,74.46,Feb-21
EREWASH BOROUGH COUNCIL,223781,Commissioned Projects,Fees Costs and Expenses,02/12/20,LLOYDS BANK,94.95,Feb-21
EREWASH BOROUGH COUNCIL,223781,Dog Control,Materials/Consumables,02/12/20,LLOYDS BANK,99.95,Feb-21
EREWASH BOROUGH COUNCIL,223781,Communications,General Publicity and Promotion,02/12/20,LLOYDS BANK,100.00,Feb-21
EREWASH BOROUGH COUNCIL,223781,Rutland Sports Park,Reactive Maintenance,02/12/20,LLOYDS BANK,106.66,Feb-21
EREWASH BOROUGH COUNCIL,224338,Transport Trading Account,General Equipment,04/01/21,LLOYDS BANK,130.00,Feb-21
EREWASH BOROUGH COUNCIL,224222,Treasury Management and Bank Charges,Unpaid Cheque Fees,11/01/21,LLOYDS BANK,144.61,Feb-21
EREWASH BOROUGH COUNCIL,223781,Neighbourhood Wardens,Uniforms,02/12/20,LLOYDS BANK,149.99,Feb-21
EREWASH BOROUGH COUNCIL,224222,Treasury Management and Bank Charges,Lloyds Bank Charges for Debits and Credits,11/01/21,LLOYDS BANK,154.60,Feb-21
EREWASH BOROUGH COUNCIL,223781,Kerbside Dry Recycling Collection,Repairs and Maintenance,02/12/20,LLOYDS BANK,169.40,Feb-21
EREWASH BOROUGH COUNCIL,224338,Trade Waste,Road Taxes,04/01/21,LLOYDS BANK,212.50,Feb-21
EREWASH BOROUGH COUNCIL,223781,Planning Policy,Courses and Seminars,02/12/20,LLOYDS BANK,238.80,Feb-21
EREWASH BOROUGH COUNCIL,224338,Green Space,Road Taxes,04/01/21,LLOYDS BANK,267.50,Feb-21
EREWASH BOROUGH COUNCIL,223781,Green Space,Materials/Consumables,02/12/20,LLOYDS BANK,279.75,Feb-21
EREWASH BOROUGH COUNCIL,224338,Community Services,Printing and Stationery,04/01/21,LLOYDS BANK,369.00,Feb-21
EREWASH BOROUGH COUNCIL,223781,Reprographics,Printing and Stationery,02/12/20,LLOYDS BANK,444.98,Feb-21
EREWASH BOROUGH COUNCIL,223781,ICT Support Services,Mobile Phones,02/12/20,LLOYDS BANK,458.63,Feb-21
EREWASH BOROUGH COUNCIL,224222,Treasury Management and Bank Charges,Lloyds BACS Services,11/01/21,LLOYDS BANK,566.61,Feb-21
EREWASH BOROUGH COUNCIL,223706,Homelessness,Computer Software,31/12/20,LOCATA (HOUSING SERVICES) LTD,"3,750.00",Feb-21
EREWASH BOROUGH COUNCIL,224154,Trade Waste,Tyres,30/01/21,LODGE TYRE COMPANY LTD,42.50,Feb-21
EREWASH BOROUGH COUNCIL,224154,Ilkeston Admin and Courier,Tyres,30/01/21,LODGE TYRE COMPANY LTD,62.00,Feb-21
EREWASH BOROUGH COUNCIL,224154,Neighbourhood Wardens,Tyres,30/01/21,LODGE TYRE COMPANY LTD,96.00,Feb-21
EREWASH BOROUGH COUNCIL,224154,Green Space,Tyres,30/01/21,LODGE TYRE COMPANY LTD,375.00,Feb-21
EREWASH BOROUGH COUNCIL,224154,Street Scene,Tyres,30/01/21,LODGE TYRE COMPANY LTD,440.00,Feb-21
EREWASH BOROUGH COUNCIL,224154,Household/Residual Waste Collection,Tyres,30/01/21,LODGE TYRE COMPANY LTD,"3,300.00",Feb-21
EREWASH BOROUGH COUNCIL,224154,Kerbside Dry Recycling Collection,Tyres,30/01/21,LODGE TYRE COMPANY LTD,"3,868.18",Feb-21
EREWASH BOROUGH COUNCIL,223497,Community Grants,Grants and Subscriptions,02/02/21,LONG EATON SILVER PRIZE BAND,250.00,Feb-21
EREWASH BOROUGH COUNCIL,223401,Balance Sheet,ICT Works,24/01/21,MACILDOWIE RECRUITMENT EXPERTISE,"1,113.26",Feb-21
EREWASH BOROUGH COUNCIL,223570,Balance Sheet,ICT Works,31/01/21,MACILDOWIE RECRUITMENT EXPERTISE,"1,152.18",Feb-21
EREWASH BOROUGH COUNCIL,224172,Balance Sheet,ICT Works,14/02/21,MACILDOWIE RECRUITMENT EXPERTISE,"1,263.18",Feb-21
EREWASH BOROUGH COUNCIL,223852,Balance Sheet,ICT Works,07/02/21,MACILDOWIE RECRUITMENT EXPERTISE,"1,263.18",Feb-21
EREWASH BOROUGH COUNCIL,223842,Household/Residual Waste Collection,Protective Clothing,26/01/21,MAIN MAN SUPPLIES LTD,972.00,Feb-21
EREWASH BOROUGH COUNCIL,224312,Household/Residual Waste Collection,Protective Clothing,20/01/21,MARK DOUGLAS INDUSTRIAL SUPPLIES LTD,219.00,Feb-21
EREWASH BOROUGH COUNCIL,223404,Green Space,Materials/Consumables,14/01/21,MARWOOD GROUP LIMITED,"1,867.26",Feb-21
EREWASH BOROUGH COUNCIL,224158,Property and Estates,PPM Mechanical and Equipment,29/01/21,MDB PLUMBING (NOTTM) LTD,329.94,Feb-21
EREWASH BOROUGH COUNCIL,223188,Property and Estates,Repairs and Maintenance,07/01/21,MDB PLUMBING (NOTTM) LTD,446.63,Feb-21
EREWASH BOROUGH COUNCIL,223581,Property and Estates,PPM Mechanical and Equipment,22/01/21,MDB PLUMBING (NOTTM) LTD,"1,391.34",Feb-21
EREWASH BOROUGH COUNCIL,223343,Occupational Health and Welfare,Occupational Health Service,11/01/21,MEDIGOLD HEALTH CONSULTANCY LIMITED,645.00,Feb-21
EREWASH BOROUGH COUNCIL,224220,Non Ring Fenced Government Grants,Revenue Support Grant,22/02/21,MHCLG,"-8,438.00",Feb-21
EREWASH BOROUGH COUNCIL,224220,Balance Sheet,NNDR Collection Fund Control Account,22/02/21,MHCLG,"-6,833.00",Feb-21
EREWASH BOROUGH COUNCIL,224220,Balance Sheet,NNDR Collection Fund Control Account,22/02/21,MHCLG,"-2,318.00",Feb-21
EREWASH BOROUGH COUNCIL,224220,Balance Sheet,NNDR Collection Fund Control Account,22/02/21,MHCLG,"1,554,426.00",Feb-21
EREWASH BOROUGH COUNCIL,223559,Licensing - Liquor Entertainment and Other Licensing,Materials/Consumables,14/01/21,MOGO (UK),216.00,Feb-21
EREWASH BOROUGH COUNCIL,223559,Hackney Carriages / Private Hire,Materials/Consumables,14/01/21,MOGO (UK),"4,174.30",Feb-21
EREWASH BOROUGH COUNCIL,223764,Legal Services,"Stamp Duty,Search and Legal Fees",13/01/21,NO5 CHAMBERS LTD COLLECTION ACCOUNT,"1,500.00",Feb-21
EREWASH BOROUGH COUNCIL,223764,Development Control - Fee Earning,Consultants Fees,13/01/21,NO5 CHAMBERS LTD COLLECTION ACCOUNT,"10,900.00",Feb-21
EREWASH BOROUGH COUNCIL,223482,ICT Support Services,Non Domestic Rates Income,05/01/21,NOTTINGHAM CITY COUNCIL..,"1,400.00",Feb-21
EREWASH BOROUGH COUNCIL,224169,Planning Policy,Consultants Fees,28/01/21,NOTTINGHAM CITY COUNCIL..,"6,256.00",Feb-21
EREWASH BOROUGH COUNCIL,223713,Urban Renewal,Agency Staff,13/01/21,OSBORNE RICHARDSON,"1,224.00",Feb-21
EREWASH BOROUGH COUNCIL,224132,Urban Renewal,Agency Staff,27/01/21,OSBORNE RICHARDSON,"1,258.00",Feb-21
EREWASH BOROUGH COUNCIL,224133,Urban Renewal,Agency Staff,20/01/21,OSBORNE RICHARDSON,"1,258.00",Feb-21
EREWASH BOROUGH COUNCIL,224134,Urban Renewal,Agency Staff,10/02/21,OSBORNE RICHARDSON,"1,258.00",Feb-21
EREWASH BOROUGH COUNCIL,224135,Urban Renewal,Agency Staff,03/02/21,OSBORNE RICHARDSON,"1,258.00",Feb-21
EREWASH BOROUGH COUNCIL,223397,Leisure Contract,Contracted Services,26/01/21,PARKWOOD LEISURE LTD,"26,733.42",Feb-21
EREWASH BOROUGH COUNCIL,224252,Green Space,Repairs and Maintenance,16/02/21,PARTSPLUS,287.84,Feb-21
EREWASH BOROUGH COUNCIL,223157,Kerbside Dry Recycling Collection,Repairs and Maintenance,11/01/21,PB AUTO ELECTRICS,108.56,Feb-21
EREWASH BOROUGH COUNCIL,223157,Household/Residual Waste Collection,Repairs and Maintenance,11/01/21,PB AUTO ELECTRICS,225.47,Feb-21
EREWASH BOROUGH COUNCIL,223473,Green Space,Repairs and Maintenance,23/01/21,PB AUTO ELECTRICS,574.90,Feb-21
EREWASH BOROUGH COUNCIL,223142,Property and Estates,Repairs and Maintenance,15/01/21,PEEL ELECTRICAL LTD,215.50,Feb-21
EREWASH BOROUGH COUNCIL,223184,Property and Estates,PPM Mechanical and Equipment,13/01/21,PEEL ELECTRICAL LTD,221.88,Feb-21
EREWASH BOROUGH COUNCIL,223186,Property and Estates,Repairs and Maintenance,13/01/21,PEEL ELECTRICAL LTD,224.24,Feb-21
EREWASH BOROUGH COUNCIL,223185,Property and Estates,Repairs and Maintenance,13/01/21,PEEL ELECTRICAL LTD,273.02,Feb-21
EREWASH BOROUGH COUNCIL,223177,Property and Estates,PPM Mechanical and Equipment,14/01/21,PEEL ELECTRICAL LTD,274.00,Feb-21
EREWASH BOROUGH COUNCIL,223315,Property and Estates,Repairs and Maintenance,22/01/21,PEEL ELECTRICAL LTD,402.10,Feb-21
EREWASH BOROUGH COUNCIL,223338,Property and Estates,PPM Mechanical and Equipment,21/01/21,PEEL ELECTRICAL LTD,451.62,Feb-21
EREWASH BOROUGH COUNCIL,223720,Property and Estates,PPM Mechanical and Equipment,05/02/21,PEEL ELECTRICAL LTD,487.07,Feb-21
EREWASH BOROUGH COUNCIL,223722,Property and Estates,PPM Mechanical and Equipment,05/02/21,PEEL ELECTRICAL LTD,506.64,Feb-21
EREWASH BOROUGH COUNCIL,223643,Property and Estates,Repairs and Maintenance,27/01/21,PEEL ELECTRICAL LTD,952.92,Feb-21
EREWASH BOROUGH COUNCIL,222981,Property and Estates,PPM Mechanical and Equipment,06/01/21,PEEL ELECTRICAL LTD,"1,033.79",Feb-21
EREWASH BOROUGH COUNCIL,223283,Homelessness,Contracted Services,13/01/21,PEOPLE POTENTIAL POSSIBILITIES,"27,043.83",Feb-21
EREWASH BOROUGH COUNCIL,224326,Neighbourhood Wardens,Repairs and Maintenance,25/01/21,PERRYS,285.55,Feb-21
EREWASH BOROUGH COUNCIL,223480,"Police, Crime Commissioner Community Safety Grant",Project Grants,19/01/21,POLICE AND CRIME COMMISSIONER FOR DERBYSHIRE,302.00,Feb-21
EREWASH BOROUGH COUNCIL,223480,Community Safety,Grants and Subscriptions,19/01/21,POLICE AND CRIME COMMISSIONER FOR DERBYSHIRE,"1,500.00",Feb-21
EREWASH BOROUGH COUNCIL,223305,Green Space,Materials/Consumables,15/01/21,PROTECTIVE WEAR SUPPLIES LTD,221.60,Feb-21
EREWASH BOROUGH COUNCIL,223549,Green Space,Materials/Consumables,25/01/21,PROTECTIVE WEAR SUPPLIES LTD,289.89,Feb-21
EREWASH BOROUGH COUNCIL,224287,Balance Sheet,Payroll Collection A/c - AVCS,23/02/21,PRUDENTIAL,"2,448.16",Feb-21
EREWASH BOROUGH COUNCIL,223552,Performance Management,Consultants Fees,31/01/21,Q2 LIMITED,"2,310.00",Feb-21
EREWASH BOROUGH COUNCIL,223815,Kerbside Dry Recycling Collection,Agency Staff,04/02/21,QUALITY SERVICE RECRUITMENT LTD,212.08,Feb-21
EREWASH BOROUGH COUNCIL,223574,Kerbside Dry Recycling Collection,Agency Staff,21/01/21,QUALITY SERVICE RECRUITMENT LTD,212.08,Feb-21
EREWASH BOROUGH COUNCIL,223703,Kerbside Dry Recycling Collection,Agency Staff,28/01/21,QUALITY SERVICE RECRUITMENT LTD,212.08,Feb-21
EREWASH BOROUGH COUNCIL,223703,Household/Residual Waste Collection,Agency Staff,28/01/21,QUALITY SERVICE RECRUITMENT LTD,318.13,Feb-21
EREWASH BOROUGH COUNCIL,223815,Household/Residual Waste Collection,Agency Staff,04/02/21,QUALITY SERVICE RECRUITMENT LTD,318.13,Feb-21
EREWASH BOROUGH COUNCIL,223574,Household/Residual Waste Collection,Agency Staff,21/01/21,QUALITY SERVICE RECRUITMENT LTD,318.13,Feb-21
EREWASH BOROUGH COUNCIL,223622,Transport Trading Account,Agency Staff,25/01/21,QUESTECH RECRUITMENT LTD,906.50,Feb-21
EREWASH BOROUGH COUNCIL,224143,Transport Trading Account,Agency Staff,08/02/21,QUESTECH RECRUITMENT LTD,906.50,Feb-21
EREWASH BOROUGH COUNCIL,224198,Transport Trading Account,Agency Staff,15/02/21,QUESTECH RECRUITMENT LTD,906.50,Feb-21
EREWASH BOROUGH COUNCIL,223616,Transport Trading Account,Agency Staff,01/02/21,QUESTECH RECRUITMENT LTD,"1,617.00",Feb-21
EREWASH BOROUGH COUNCIL,223451,Building Control - Fee Earning,Agency Staff,29/01/21,REED SPECIALIST RECRUITMENT LTD,351.60,Feb-21
EREWASH BOROUGH COUNCIL,223483,Building Control - Fee Earning,Agency Staff,15/01/21,REED SPECIALIST RECRUITMENT LTD,351.60,Feb-21
EREWASH BOROUGH COUNCIL,223762,Building Control - Fee Earning,Agency Staff,29/01/21,REED SPECIALIST RECRUITMENT LTD,360.39,Feb-21
EREWASH BOROUGH COUNCIL,223310,Green Space,Materials/Consumables,14/01/21,RIGBY TAYLOR LTD,"1,418.25",Feb-21
EREWASH BOROUGH COUNCIL,223737,Revenues and Benefits,Postages,03/02/21,ROYAL MAIL GROUP LTD.,333.00,Feb-21
EREWASH BOROUGH COUNCIL,224205,Revenues and Benefits,Postages,10/02/21,ROYAL MAIL GROUP LTD.,"1,011.56",Feb-21
EREWASH BOROUGH COUNCIL,224171,Revenues and Benefits,Postages,27/01/21,ROYAL MAIL GROUP LTD.,"1,080.36",Feb-21
EREWASH BOROUGH COUNCIL,223329,Street Scene,Repairs and Maintenance,19/01/21,RUSSELLS (KIRBYMOORSIDE) LIMITED,"2,995.96",Feb-21
EREWASH BOROUGH COUNCIL,223567,Abandoned Vehicle Removal,Contracted Services,19/01/21,SAFETY SIGNS & NOTICES,297.00,Feb-21
EREWASH BOROUGH COUNCIL,223474,Street Scene,Repairs and Maintenance,21/01/21,SCARAB SWEEPERS LTD,448.54,Feb-21
EREWASH BOROUGH COUNCIL,224152,Street Scene,Repairs and Maintenance,02/02/21,SCARAB SWEEPERS LTD,667.50,Feb-21
EREWASH BOROUGH COUNCIL,224282,Registration of Electors,Printing and Stationery,31/01/21,SCI PRINT LTD,556.59,Feb-21
EREWASH BOROUGH COUNCIL,223753,Registration of Electors,Printing and Stationery,29/01/21,SCI PRINT LTD,"1,796.08",Feb-21
EREWASH BOROUGH COUNCIL,223754,Registration of Electors,Printing and Stationery,22/01/21,SCI PRINT LTD,"2,896.86",Feb-21
EREWASH BOROUGH COUNCIL,224335,Allotments,Metered Water,01/02/21,SCOTTISH WATER BUSINESS STREAM LIMITED,-638.71,Feb-21
EREWASH BOROUGH COUNCIL,224335,Green Space,Metered Water,01/02/21,SCOTTISH WATER BUSINESS STREAM LIMITED,-114.83,Feb-21
EREWASH BOROUGH COUNCIL,224335,Car Parking,Unmetered Water,01/02/21,SCOTTISH WATER BUSINESS STREAM LIMITED,1.33,Feb-21
EREWASH BOROUGH COUNCIL,224335,Cotmanhay Pavilion,Unmetered Water,01/02/21,SCOTTISH WATER BUSINESS STREAM LIMITED,6.50,Feb-21
EREWASH BOROUGH COUNCIL,224335,Shopmobility - Long Eaton,Metered Water,01/02/21,SCOTTISH WATER BUSINESS STREAM LIMITED,7.05,Feb-21
EREWASH BOROUGH COUNCIL,224335,Shopmobility - Ilkeston,Metered Water,01/02/21,SCOTTISH WATER BUSINESS STREAM LIMITED,27.04,Feb-21
EREWASH BOROUGH COUNCIL,224335,Civic Accommodation - Long Eaton,Metered Water,01/02/21,SCOTTISH WATER BUSINESS STREAM LIMITED,40.99,Feb-21
EREWASH BOROUGH COUNCIL,224335,Erewash Museum,Unmetered Water,01/02/21,SCOTTISH WATER BUSINESS STREAM LIMITED,47.66,Feb-21
EREWASH BOROUGH COUNCIL,224335,Long Eaton Market,Metered Water,01/02/21,SCOTTISH WATER BUSINESS STREAM LIMITED,60.27,Feb-21
EREWASH BOROUGH COUNCIL,224335,Rutland Sports Park,Metered Water,01/02/21,SCOTTISH WATER BUSINESS STREAM LIMITED,91.18,Feb-21
EREWASH BOROUGH COUNCIL,224335,Cemeteries,Metered Water,01/02/21,SCOTTISH WATER BUSINESS STREAM LIMITED,95.07,Feb-21
EREWASH BOROUGH COUNCIL,224335,Sandiacre Friesland Sports Centre,Metered Water,01/02/21,SCOTTISH WATER BUSINESS STREAM LIMITED,171.77,Feb-21
EREWASH BOROUGH COUNCIL,224335,Civic Accommodation - Ilkeston,Metered Water,01/02/21,SCOTTISH WATER BUSINESS STREAM LIMITED,478.98,Feb-21
EREWASH BOROUGH COUNCIL,224335,Public Conveniences,Metered Water,01/02/21,SCOTTISH WATER BUSINESS STREAM LIMITED,959.51,Feb-21
EREWASH BOROUGH COUNCIL,224335,Merlin Way Depot - Ilkeston,Metered Water,01/02/21,SCOTTISH WATER BUSINESS STREAM LIMITED,"1,852.21",Feb-21
EREWASH BOROUGH COUNCIL,223496,Community Grants,Project Grants,02/02/21,SHE WILL - FYE,630.00,Feb-21
EREWASH BOROUGH COUNCIL,224155,Street Scene,Repairs and Maintenance,23/01/21,SHERWOOD COMMERCIAL VEHICLE REPAIR CENTRE,187.20,Feb-21
EREWASH BOROUGH COUNCIL,224155,Street Scene,Hire Charges,23/01/21,SHERWOOD COMMERCIAL VEHICLE REPAIR CENTRE,"2,226.26",Feb-21
EREWASH BOROUGH COUNCIL,223756,Green Space,Materials/Consumables,29/01/21,SLINTER MINING COMPANY,353.19,Feb-21
EREWASH BOROUGH COUNCIL,223768,Democratic Representation,Communications costs,28/01/21,SNOW ELK PRODUCTIONS,400.00,Feb-21
EREWASH BOROUGH COUNCIL,223648,Basic Command Unit,General Equipment,14/10/20,SOUTH DERBYSHIRE CVS.,"4,000.00",Feb-21
EREWASH BOROUGH COUNCIL,223422,Atmospheric Pollution,Nitrogen Dioxide Survey,18/01/21,STAFFORDSHIRE COUNTY COUNCIL,855.00,Feb-21
EREWASH BOROUGH COUNCIL,223816,Corporate Health and Safety,Water Testing (Legionella),31/12/20,STERILIZING SERVICES LTD,584.40,Feb-21
EREWASH BOROUGH COUNCIL,223700,Corporate Health and Safety,Water Testing (Legionella),29/01/21,STERILIZING SERVICES LTD,730.40,Feb-21
EREWASH BOROUGH COUNCIL,224251,Green Space,Repairs and Maintenance,17/02/21,T C HARRISON GROUP LTD,225.00,Feb-21
EREWASH BOROUGH COUNCIL,223487,Green Space,Materials/Consumables,19/01/21,T H HEATH  CONTRACTS  LTD,"2,380.00",Feb-21
EREWASH BOROUGH COUNCIL,223150,Household/Residual Waste Collection,Repairs and Maintenance,13/01/21,T P HOPWELL (BIRMINGHAM) LTD,428.63,Feb-21
EREWASH BOROUGH COUNCIL,223627,Household/Residual Waste Collection,Repairs and Maintenance,20/01/21,T P HOPWELL (BIRMINGHAM) LTD,454.72,Feb-21
EREWASH BOROUGH COUNCIL,223170,Property and Estates,Alarms Planned Maintenence,11/01/21,TECSERV UK,925.67,Feb-21
EREWASH BOROUGH COUNCIL,223547,ICT Support Services,Telephones,01/02/21,TELEPHONE TECHNOLOGY LTD,210.00,Feb-21
EREWASH BOROUGH COUNCIL,223477,Balance Sheet,Fuel Store,21/01/21,TENNANTS DISTRIBUTION LTD,340.00,Feb-21
EREWASH BOROUGH COUNCIL,223632,Kerbside Dry Recycling Collection,Repairs and Maintenance,19/01/21,TERBERG MATEC UK,381.67,Feb-21
EREWASH BOROUGH COUNCIL,223809,Household/Residual Waste Collection,Repairs and Maintenance,27/01/21,TERBERG MATEC UK,425.27,Feb-21
EREWASH BOROUGH COUNCIL,223615,Household/Residual Waste Collection,Repairs and Maintenance,19/01/21,TERBERG MATEC UK,525.74,Feb-21
EREWASH BOROUGH COUNCIL,223564,Homelessness,Temporary Accommodation,25/01/21,THE CLARENCE HOTEL,350.00,Feb-21
EREWASH BOROUGH COUNCIL,224192,Pride In Erewash,Spend to Save,16/02/21,THE HELPING HAND COMPANY,946.92,Feb-21
EREWASH BOROUGH COUNCIL,223551,Erewash Museum,Goods for Resale,15/01/21,THE ILKESTON & DISTRICT LOCAL HISTORY SOCIETY,299.68,Feb-21
EREWASH BOROUGH COUNCIL,223577,Kerbside Dry Recycling Collection,Agency Staff,05/01/21,THORN BAKER LIMITED,998.73,Feb-21
EREWASH BOROUGH COUNCIL,223573,Kerbside Dry Recycling Collection,Agency Staff,19/01/21,THORN BAKER LIMITED,"1,174.97",Feb-21
EREWASH BOROUGH COUNCIL,223578,Kerbside Dry Recycling Collection,Agency Staff,29/12/20,THORN BAKER LIMITED,"1,331.64",Feb-21
EREWASH BOROUGH COUNCIL,223575,Kerbside Dry Recycling Collection,Agency Staff,12/01/21,THORN BAKER LIMITED,"1,336.97",Feb-21
EREWASH BOROUGH COUNCIL,223577,Household/Residual Waste Collection,Agency Staff,05/01/21,THORN BAKER LIMITED,"1,498.09",Feb-21
EREWASH BOROUGH COUNCIL,223573,Household/Residual Waste Collection,Agency Staff,19/01/21,THORN BAKER LIMITED,"1,762.46",Feb-21
EREWASH BOROUGH COUNCIL,223578,Household/Residual Waste Collection,Agency Staff,29/12/20,THORN BAKER LIMITED,"1,997.46",Feb-21
EREWASH BOROUGH COUNCIL,223575,Household/Residual Waste Collection,Agency Staff,12/01/21,THORN BAKER LIMITED,"2,005.46",Feb-21
EREWASH BOROUGH COUNCIL,223301,Trees Hedges and Local Nature Reserves,Contracted Services,22/01/21,TOM RICHARDS TREE SERVICES,600.00,Feb-21
EREWASH BOROUGH COUNCIL,223139,Trees Hedges and Local Nature Reserves,Contracted Services,15/01/21,TOM RICHARDS TREE SERVICES,710.00,Feb-21
EREWASH BOROUGH COUNCIL,223227,Trees Hedges and Local Nature Reserves,Contracted Services,18/01/21,TOM RICHARDS TREE SERVICES,"1,080.00",Feb-21
EREWASH BOROUGH COUNCIL,223278,Trees Hedges and Local Nature Reserves,Contracted Services,19/01/21,TOM RICHARDS TREE SERVICES,"1,560.00",Feb-21
EREWASH BOROUGH COUNCIL,223325,Green Space,Gas,13/01/21,TOTAL GAS & POWER LTD,-69.87,Feb-21
EREWASH BOROUGH COUNCIL,223351,Civic Accommodation - Long Eaton,Electricity,12/01/21,TOTAL GAS & POWER LTD,14.16,Feb-21
EREWASH BOROUGH COUNCIL,223351,Public Clocks,Electricity,12/01/21,TOTAL GAS & POWER LTD,18.68,Feb-21
EREWASH BOROUGH COUNCIL,223351,Belvoir Close Maintenance,Electricity,12/01/21,TOTAL GAS & POWER LTD,30.50,Feb-21
EREWASH BOROUGH COUNCIL,223351,Long Eaton Market,Electricity,12/01/21,TOTAL GAS & POWER LTD,41.18,Feb-21
EREWASH BOROUGH COUNCIL,223351,Bridge Arches - Long Eaton,Electricity,12/01/21,TOTAL GAS & POWER LTD,41.82,Feb-21
EREWASH BOROUGH COUNCIL,223351,Cotmanhay Pavilion,Electricity,12/01/21,TOTAL GAS & POWER LTD,54.02,Feb-21
EREWASH BOROUGH COUNCIL,223351,Pewit Golf Course,Electricity,12/01/21,TOTAL GAS & POWER LTD,72.11,Feb-21
EREWASH BOROUGH COUNCIL,223336,Long Eaton Market,Electricity,12/01/21,TOTAL GAS & POWER LTD,185.10,Feb-21
EREWASH BOROUGH COUNCIL,223351,Erewash Museum,Electricity,12/01/21,TOTAL GAS & POWER LTD,187.72,Feb-21
EREWASH BOROUGH COUNCIL,223351,Shopmobility - Ilkeston,Electricity,12/01/21,TOTAL GAS & POWER LTD,207.62,Feb-21
EREWASH BOROUGH COUNCIL,223351,Cemeteries,Electricity,12/01/21,TOTAL GAS & POWER LTD,218.13,Feb-21
EREWASH BOROUGH COUNCIL,223325,Rutland Sports Park,Gas,13/01/21,TOTAL GAS & POWER LTD,219.14,Feb-21
EREWASH BOROUGH COUNCIL,223325,Bridge House - Long Eaton,Gas,13/01/21,TOTAL GAS & POWER LTD,241.83,Feb-21
EREWASH BOROUGH COUNCIL,223325,Sandiacre Friesland Sports Centre,Gas,13/01/21,TOTAL GAS & POWER LTD,321.79,Feb-21
EREWASH BOROUGH COUNCIL,223351,CCTV - Ilkeston and Long Eaton,Electricity,12/01/21,TOTAL GAS & POWER LTD,343.45,Feb-21
EREWASH BOROUGH COUNCIL,223325,Erewash Museum,Gas,13/01/21,TOTAL GAS & POWER LTD,367.28,Feb-21
EREWASH BOROUGH COUNCIL,223351,Shopmobility - Long Eaton,Electricity,12/01/21,TOTAL GAS & POWER LTD,411.41,Feb-21
EREWASH BOROUGH COUNCIL,223336,Sandiacre Friesland Sports Centre,Electricity,12/01/21,TOTAL GAS & POWER LTD,424.26,Feb-21
EREWASH BOROUGH COUNCIL,223351,Ilkeston Market,Electricity,12/01/21,TOTAL GAS & POWER LTD,425.12,Feb-21
EREWASH BOROUGH COUNCIL,223351,Public Conveniences,Electricity,12/01/21,TOTAL GAS & POWER LTD,483.17,Feb-21
EREWASH BOROUGH COUNCIL,223351,Toll Bar House - Ilkeston,Electricity,12/01/21,TOTAL GAS & POWER LTD,535.69,Feb-21
EREWASH BOROUGH COUNCIL,223351,Civic Accommodation - Ilkeston,Electricity,12/01/21,TOTAL GAS & POWER LTD,563.41,Feb-21
EREWASH BOROUGH COUNCIL,223325,Civic Accommodation - Ilkeston,Gas,13/01/21,TOTAL GAS & POWER LTD,606.80,Feb-21
EREWASH BOROUGH COUNCIL,223336,Green Space,Electricity,12/01/21,TOTAL GAS & POWER LTD,646.20,Feb-21
EREWASH BOROUGH COUNCIL,223325,Merlin Way Depot - Ilkeston,Gas,13/01/21,TOTAL GAS & POWER LTD,661.68,Feb-21
EREWASH BOROUGH COUNCIL,223351,Car Parking,Electricity,12/01/21,TOTAL GAS & POWER LTD,767.70,Feb-21
EREWASH BOROUGH COUNCIL,223325,Civic Accommodation - Long Eaton,Gas,13/01/21,TOTAL GAS & POWER LTD,"1,124.61",Feb-21
EREWASH BOROUGH COUNCIL,223336,Civic Accommodation - Ilkeston,Electricity,12/01/21,TOTAL GAS & POWER LTD,"1,327.46",Feb-21
EREWASH BOROUGH COUNCIL,223336,Merlin Way Depot - Ilkeston,Electricity,12/01/21,TOTAL GAS & POWER LTD,"1,752.27",Feb-21
EREWASH BOROUGH COUNCIL,223351,Green Space,Electricity,12/01/21,TOTAL GAS & POWER LTD,"2,219.38",Feb-21
EREWASH BOROUGH COUNCIL,223273,Transport Trading Account,Agency Staff,08/01/21,TOTAL TRANSPORT COMPLIANCE,"1,250.00",Feb-21
EREWASH BOROUGH COUNCIL,223416,Transport Trading Account,Agency Staff,22/01/21,TOTAL TRANSPORT COMPLIANCE,"1,500.00",Feb-21
EREWASH BOROUGH COUNCIL,224208,Balance Sheet,PCC - Election,10/02/21,TRENT MARQUEES,550.00,Feb-21
EREWASH BOROUGH COUNCIL,223137,Green Space,Materials/Consumables,14/01/21,TUDOR ENVIRONMENTAL,210.02,Feb-21
EREWASH BOROUGH COUNCIL,223304,Street Scene,Materials/Consumables,18/01/21,TUDOR ENVIRONMENTAL,271.43,Feb-21
EREWASH BOROUGH COUNCIL,224130,Homelessness,Temporary Accommodation,09/02/21,TUDOR LODGE HOTEL,208.34,Feb-21
EREWASH BOROUGH COUNCIL,224240,Trade Waste,Bins,17/11/20,UK CONTAINER MAINTENANCE LTD,"1,419.60",Feb-21
EREWASH BOROUGH COUNCIL,224294,Payments,Commission,23/02/21,UNISON,-6.91,Feb-21
EREWASH BOROUGH COUNCIL,224294,Balance Sheet,Payroll Collection A/c - Trade Union Subscriptions,23/02/21,UNISON,460.60,Feb-21
EREWASH BOROUGH COUNCIL,224225,Transport Trading Account,Lubricants and Anti-freeze,10/02/21,VOLVO GROUP UK LIMITED,758.63,Feb-21
EREWASH BOROUGH COUNCIL,223465,Green Space,Contracted Services,01/01/21,WARD RECYCLING,84.80,Feb-21
EREWASH BOROUGH COUNCIL,223465,Street Scene,Materials/Consumables,01/01/21,WARD RECYCLING,216.40,Feb-21
EREWASH BOROUGH COUNCIL,224260,Council Tax Collection,Fees Costs and Expenses,08/02/21,WILKIN CHAPMAN LLP,"1,297.50",Feb-21
EREWASH BOROUGH COUNCIL,223580,Council Tax Collection,Fees Costs and Expenses,18/01/21,WILKIN CHAPMAN LLP,"5,387.00",Feb-21
EREWASH BOROUGH COUNCIL,224195,Household/Residual Waste Collection,MOTs,29/01/21,WILLIAM WEST & SONS (ILKESTON) LIMITED,158.00,Feb-21
EREWASH BOROUGH COUNCIL,224195,Household/Residual Waste Collection,Repairs and Maintenance,29/01/21,WILLIAM WEST & SONS (ILKESTON) LIMITED,660.82,Feb-21
EREWASH BOROUGH COUNCIL,223814,Kerbside Dry Recycling Collection,Agency Staff,30/01/21,WORKCHAIN LTD,696.49,Feb-21
EREWASH BOROUGH COUNCIL,223409,Kerbside Dry Recycling Collection,Agency Staff,09/01/21,WORKCHAIN LTD,696.49,Feb-21
EREWASH BOROUGH COUNCIL,223704,Kerbside Dry Recycling Collection,Agency Staff,16/01/21,WORKCHAIN LTD,696.49,Feb-21
EREWASH BOROUGH COUNCIL,223836,Kerbside Dry Recycling Collection,Agency Staff,23/01/21,WORKCHAIN LTD,696.49,Feb-21
EREWASH BOROUGH COUNCIL,223814,Household/Residual Waste Collection,Agency Staff,30/01/21,WORKCHAIN LTD,"1,044.73",Feb-21
EREWASH BOROUGH COUNCIL,223409,Household/Residual Waste Collection,Agency Staff,09/01/21,WORKCHAIN LTD,"1,044.73",Feb-21
EREWASH BOROUGH COUNCIL,223704,Household/Residual Waste Collection,Agency Staff,16/01/21,WORKCHAIN LTD,"1,044.73",Feb-21
EREWASH BOROUGH COUNCIL,223836,Household/Residual Waste Collection,Agency Staff,23/01/21,WORKCHAIN LTD,"1,044.73",Feb-21
EREWASH BOROUGH COUNCIL,223651,ICT Support Services,Data Lines,26/01/21,ZEN INTERNET LIMITED,"1,367.01",Feb-21
